[Event "Czech Open Rapid G1 2024"]
[Site "Pardubice"]
[Date "2024.07.18"]
[Round "9.11"]
[White "Bouska, Jiri"]
[Black "Jirka, Jiri"]
[Result "0-1"]
[Annotator "TA"]
[ECO "C60"]
[WhiteElo "2222"]
[BlackElo "2387"]
[PlyCount "100"]
[EventDate "2024.07.16"]
[EventType "swiss"]
[EventCountry "CZE"]
[SourceTitle "playchess.com"]
[Source "ChessBase"]
[SourceQuality "1"]
[TimeControl "1200+10"]

{[%evp 14,100,45,26,35,21,28,21,42,28,27,19,37,19,17,19,20,-20,31,31,49,0,0,7,7,3,0,0,10,-5,0,-17,-7,-10,-13,-38,-34,-86,-51,-141,-120,-118,-123,-116,-103,-107,-97,-143,-132,-171,-169,-174,-174,-172,-179,-192,-135,-138,-137,-137,-141,-136,-126,-150,-154,-226,-166,-370,-225,-788,-788,-768,-744,-1079,-1224,-1256,-1148,-1244,-1200,-1147,-1219,-1367,-1448,-2796,-2395,-29975,-29976,-29989,-29990]} 1. e4 {[%emt 0:00:02]} e5 {[%emt 0:00:32]} 2. Nf3 {[%emt 0:00:02]} Nc6 {[%emt 0:00:01]} 3. Bb5 {[%emt 0:00:01]} a6 {[%emt 0:00:01]} 4. Ba4 {[%emt 0:00:01]} Nge7 {[%emt 0:00:01]} 5. O-O {[%emt 0:00:04]} g6 {[%emt 0:00:01]} 6. c3 {[%emt 0:01:52]} Bg7 {[%emt 0:00:02]} 7. d4 {[%emt 0:00:04]} exd4 {[%emt 0:00:01]} 8. cxd4 {[%emt 0:00:01]} b5 {[%emt 0:00:01]} 9. Bc2 {[%emt 0:00:22]} O-O {[%emt 0:00:04]} 10. Nc3 {[%emt 0:01:07]} d6 {[%emt 0:00:36] The position is equal.} 11. h3 {[%emt 0:00:15] Repels Bg4} Na5 {[%emt 0:00:04]} 12. Re1 {[%emt 0:00:29]} c5 {[%emt 0:00:22]} 13. dxc5 {[%emt 0:03:33]} dxc5 {[%emt 0:00:07]} 14. Qxd8 {[%emt 0:00:25]} Rxd8 {[%emt 0:00:01]} 15. Be3 {[%emt 0:00:20]} Nb7 {[%emt 0:04:41]} (15... Nec6 $11) 16. Bg5 $14 {[%emt 0:01:19]} f6 {[%emt 0:01:11]} 17. Bf4 {[%emt 0:00:38]} Be6 {[%emt 0:00:07]} 18. Rad1 {[%emt 0:00:03]} Nc6 {[%emt 0:04:00][%cal Be7c6,Bc6d8,Bd8f7,Bf7d6][%mdl 32]} 19. a3 {[%emt 0:00:44]} Rxd1 {[%emt 0:02:28]} 20. Rxd1 {[%emt 0:00:04]} Rd8 {[%emt 0:00:17]} 21. Rxd8+ {[%emt 0:00:50]} Ncxd8 {[%emt 0:00:18]} 22. Kf1 {[%emt 0:02:20]} Nf7 {[%emt 0:00:24]} 23. Ke1 {[%emt 0:01:32]} Nfd6 {[%emt 0:00:05]} 24. b3 {[%emt 0:01:27]} f5 {[%emt 0:01:40]} 25. e5 {[%emt 0:00:17]} ({Better is} 25. Be5 $15) 25... Nf7 {[%emt 0:00:14]} 26. Nb1 {[%emt 0:03:34]} ({White should play} 26. a4 $1 $15) 26... Na5 {[%emt 0:00:15]} 27. Nbd2 {[%emt 0:00:01]} Nc6 {[%emt 0:00:02]} 28. Be3 {[%emt 0:00:11]} c4 {[%emt 0:00:32]} (28... Nfxe5 29. Nxe5 Bxe5 30. Bxc5 $15) (28... Ncxe5 29. Bxc5 Bd5 30. Nxe5 Nxe5 31. g4 fxg4 32. hxg4 $17) 29. bxc4 {[%emt 0:00:01]} bxc4 {[%emt 0:00:01][%cal Oe6d5]} ({Reject} 29... Nfxe5 $6 30. Nxe5 Bxe5 31. cxb5 axb5 32. Bc5 $15) 30. Ke2 {[%emt 0:01:50]} (30. Nd4 $142 Nxd4 (30... Ncxe5 $2 {is the wrong capture.} 31. Nxe6 c3 32. Nb1 $18) 31. Bxd4) 30... Nfxe5 {[%emt 0:00:33]} 31. Nxe5 {[%emt 0:00:20]} Bxe5 {[%emt 0:00:24]} ({But not} 31... Nxe5 32. Bd4 $17) 32. Nf3 {[%emt 0:00:12]} Bb2 {[%emt 0:00:02]} 33. Bc5 {[%emt 0:00:08]} Bd5 {[%emt 0:00:20]} 34. Ba4 {[%emt 0:00:46]} Ne5 {[%emt 0:00:24]} (34... Na5 $19 35. Bb4 Nb3) 35. Nxe5 $17 {[%emt 0:00:36]} Bxe5 {[%emt 0:00:02][%mdl 4096] Endgame. KBB-KBB} 36. f3 {[%emt 0:00:26]} Kf7 {[%emt 0:00:02] Black is more active.} 37. Kd2 {[%emt 0:00:10]} Kf6 {[%emt 0:00:07]} 38. Bd7 {[%emt 0:00:07]} Kg5 {[%emt 0:00:16]} 39. Bc8 {[%emt 0:00:01]} (39. Bf2 $17 {was necessary.}) 39... a5 {[%emt 0:00:04] ...Kf4 would now be deadly.} 40. Bb6 $2 {[%emt 0:00:02]} (40. Be3+ f4 41. Bc5) 40... a4 {[%emt 0:00:45]} 41. Bd7 $2 {[%emt 0:00:25]} (41. Be3+ f4 42. Bc5) 41... c3+ $19 {[%emt 0:00:10]} 42. Kd3 {[%emt 0:00:15]} Bb3 43. Be3+ {[%emt 0:00:00]} f4 {[%emt 0:00:19]} 44. Bc1 {[%emt 0:00:17]} Kh4 {[%emt 0:00:10]} 45. Ke4 {[%emt 0:00:04]} Bd6 {[%emt 0:00:08]} 46. Kd4 {[%emt 0:00:14]} c2 {[%emt 0:00:13]} 47. Kd3 {[%emt 0:00:15]} Kg3 {[%emt 0:00:03][%cal Od6c5] [#] ...Bc5! is the strong threat.} 48. Ke2 {[%emt 0:00:12]} Kxg2 {[%emt 0:00:05] And now ...Bc5 would win.} 49. h4 {[%emt 0:00:03]} Bc5 {[%emt 0:00:27]} 50. Bc8 {[%emt 0:00:15] [#]} Be3 $1 {[%emt 0:00:05] Weighted Error Value: White=0.75/Black=0.26 (precise) .  Mistake:       	White=6     	Black=2      Inaccurate:     	White=2     	Black=2      OK:         	White=14    	Black=11     Best:        	---       	Black=1} 0-1

[Event "Czech Open Rapid G1 2024"]
[Site "Pardubice"]
[Date "2024.07.18"]
[Round "9.12"]
[White "Dolensky, Filip"]
[Black "Lalic, Bogdan"]
[Result "1/2-1/2"]
[Annotator "RC"]
[ECO "B13"]
[WhiteElo "2085"]
[BlackElo "2348"]
[PlyCount "28"]
[EventDate "2024.07.16"]
[EventType "swiss"]
[EventCountry "CZE"]
[SourceTitle "playchess.com"]
[Source "ChessBase"]
[SourceQuality "1"]
[TimeControl "1200+10"]

1. e4 {[%emt 0:00:02]} c6 {[%emt 0:00:11]} 2. d4 {[%emt 0:00:02]} d5 {[%emt 0:00:05]} 3. exd5 {[%emt 0:00:02]} cxd5 {[%emt 0:00:05]} 4. Bd3 {[%emt 0:00:02]} Nc6 {[%emt 0:00:23]} 5. c3 {[%emt 0:00:03]} Nf6 {[%emt 0:00:14]} 6. Bf4 {[%emt 0:00:02]} Bg4 {[%emt 0:00:07]} 7. Qb3 {[%emt 0:00:03]} e5 {[%emt 0:00:47]} 8. h3 {[%emt 0:00:36]} Na5 {[%emt 0:00:42]} 9. Qc2 {[%emt 0:00:31]} exf4 {[%emt 0:00:08]} 10. hxg4 {[%emt 0:00:02]} Nxg4 {[%emt 0:00:29]} 11. Qe2+ {[%emt 0:01:19]} Qe7 {[%emt 0:00:02]} 12. Nh3 {[%emt 0:00:42]} g6 {[%emt 0:01:40]} 13. Nxf4 {[%emt 0:01:59]} O-O-O {[%emt 0:00:09]} 14. Qxe7 {[%emt 0:01:47]} Bxe7 {[%emt 0:00:04]} 1/2-1/2

[Event "Czech Open Rapid G1 2024"]
[Site "Pardubice"]
[Date "2024.07.18"]
[Round "9.13"]
[White "Rasik, Vitezslav"]
[Black "Garsky, Vladyslav"]
[Result "1-0"]
[Annotator "TA"]
[ECO "B14"]
[WhiteElo "2415"]
[BlackElo "2137"]
[PlyCount "59"]
[EventDate "2024.07.16"]
[EventType "swiss"]
[EventCountry "CZE"]
[SourceTitle "playchess.com"]
[Source "ChessBase"]
[SourceQuality "1"]
[TimeControl "1200+10"]

{[%evp 19,59,39,35,37,32,40,54,47,42,39,68,33,81,89,100,98,128,150,114,53,60,37,45,59,108,97,131,120,182,156,236,216,437,437,442,438,436,312,484,484,456,443]} 1. e4 {[%emt 0:00:03][%cal Be2e4,Be4d5][%mdl 32]} c6 {[%emt 0:00:01]} 2. c4 {[%emt 0:00:07]} d5 {[%emt 0:00:06]} 3. cxd5 {[%emt 0:00:04]} cxd5 {[%emt 0:00:01]} 4. exd5 {[%emt 0:00:01]} Nf6 {[%emt 0:00:02]} 5. Bb5+ {[%emt 0:00:05]} Nbd7 {[%emt 0:00:20]} 6. Nc3 {[%emt 0:00:03]} g6 {[%emt 0:00:26]} 7. d4 {[%emt 0:00:04]} Bg7 {[%emt 0:00:09]} 8. d6 {[%emt 0:00:05]} exd6 {[%emt 0:00:32]} 9. Qe2+ {[%emt 0:00:05]} Qe7 {[%emt 0:00:02]} 10. Bf4 {[%emt 0:00:11]} d5 {[%emt 0:00:34]} 11. Bd6 {[%emt 0:01:03][%csl Gd6][%cal Re2e7] [#]} Qxe2+ {[%emt 0:00:07]} 12. Ngxe2 {[%emt 0:00:11] Strongly threatening Nf4.} a6 {[%emt 0:00:04]} 13. Ba4 {[%emt 0:01:37] White is slightly better.} b5 {[%emt 0:00:20]} 14. Bb3 {[%emt 0:00:28]} Bb7 {[%emt 0:00:01]} 15. a4 {[%emt 0:04:39]} bxa4 {[%emt 0:00:05]} (15... Bf8 $14 {is superior.} 16. Bxf8 Kxf8) 16. Bxa4 $16 {[%emt 0:01:18]} Bf8 {[%emt 0:00:26] Black is weak on the dark squares} 17. Be5 {[%emt 0:02:05] White is much more active. The black rooks are passive.} Bg7 {[%emt 0:02:31]} 18. Bxd7+ {[%emt 0:01:06]} Kxd7 {[%emt 0:00:01]} 19. Nf4 {[%emt 0:00:32]} ({White should play} 19. Na4 $16 {aiming for Nb6+.} Ke7 20. Nb6) 19... Nh5 {[%emt 0:01:15][%cal Bf6h5,Bh5g7,Bg7e6][%mdl 32]} 20. Bxg7 {[%emt 0:02:03]} (20. Ncxd5 $2 {perishes.} Nxf4 21. Nb6+ (21. Nxf4 $2 {is the wrong capture.} f6 $19) 21... Kc6 22. Nxa8 Bxe5 (22... Nxg2+ 23. Kf1 $11) 23. dxe5 Rxa8 $19 (23... Bxa8 24. Rxa6+ Kb5 25. Rf6 $17)) (20. Nxh5 {simplifies} Bxe5 21. dxe5 gxh5 22. O-O) 20... Nxg7 {[%emt 0:00:01]} 21. Nfxd5 {[%emt 0:02:06][%cal Bf4d5,Bd5e3,Be3c4][%mdl 32]} Kd6 {[%emt 0:00:12]} (21... Bxd5 $14 22. Nxd5 Rhe8+ 23. Kd2 Reb8) 22. Ne3 {[%emt 0:00:12] Excellent horsemanship.} Rac8 {[%emt 0:00:19]} 23. O-O {[%emt 0:00:13]} f5 {[%emt 0:01:57]} (23... Rhd8 $16 {was necessary.} 24. Rfd1 Ke7) 24. Ra4 {[%emt 0:00:34] Nc4+ is the strong threat.} Ne6 {[%emt 0:00:09]} (24... Rhd8 $16 25. d5 Nh5) 25. Nc4+ $18 {[%emt 0:00:31]} Ke7 $2 {[%emt 0:00:02]} (25... Kc7 26. Rd1 Rcd8) 26. Re1 {[%emt 0:00:20]} Rhd8 {[%emt 0:00:08] [#]} 27. d5 {[%emt 0:00:20][%mdl 512]} Bxd5 {[%emt 0:00:05]} (27... Rxc4 28. Rxc4) 28. Nb6 {[%emt 0:00:04]} Bc6 {[%emt 0:00:08]} (28... Rxc3 {was worth a try.} 29. bxc3 Bb7) 29. Nxc8+ {[%emt 0:00:08]} Rxc8 {[%emt 0:00:01]} 30. Rxa6 {[%emt 0:00:02] Weighted Error Value: White=0.17 (very precise) /Black=0.42.  Mistake:       	White=1     	Black=6      Inaccurate:     	White=1     	Black=3      OK:         	White=7     	Black=3      Best:        	White=3     	Black=1} 1-0

[Event "Czech Open Rapid G1 2024"]
[Site "Pardubice"]
[Date "2024.07.18"]
[Round "9.14"]
[White "Bures, Jaroslav"]
[Black "Kroulik, Vaclav"]
[Result "1-0"]
[Annotator "TA"]
[ECO "B66"]
[WhiteElo "2418"]
[BlackElo "1976"]
[PlyCount "104"]
[EventDate "2024.07.16"]
[EventType "swiss"]
[EventCountry "CZE"]
[SourceTitle "playchess.com"]
[Source "ChessBase"]
[SourceQuality "1"]
[TimeControl "1200+10"]

{[%evp 20,104,38,15,12,0,0,-46,-45,-31,-14,-48,19,0,0,0,0,0,0,0,0,0,108,-45,32,40,28,0,0,0,19,16,21,13,18,11,66,56,60,62,45,32,29,20,35,21,21,29,65,71,65,58,97,82,111,116,127,119,232,236,513,513,498,498,498,471,2036,1969,1872,943,29979,29980,29980,29981,29981,29980,29980,29981,29984,29976,29979,771,6079,5926,5583,5583,2371]} 1. e4 {[%emt 0:00:01]} c5 {[%emt 0:00:01]} 2. Nf3 {[%emt 0:00:01]} d6 {[%emt 0:00:01]} 3. d4 {[%emt 0:00:02]} cxd4 {[%emt 0:00:02]} 4. Nxd4 {[%emt 0:00:01]} Nf6 {[%emt 0:00:01]} 5. Nc3 {[%emt 0:00:01]} Nc6 {[%emt 0:00:02]} 6. Bg5 {[%emt 0:00:02]} e6 {[%emt 0:00:03]} 7. Qd2 {[%emt 0:00:04]} a6 {[%emt 0:00:04]} 8. O-O-O {[%emt 0:00:04]} h6 {[%emt 0:00:05]} 9. Bf4 {[%emt 0:01:17]} Bd7 {[%emt 0:02:19]} 10. Nxc6 {[%emt 0:02:42]} Bxc6 {[%emt 0:00:02]} 11. Qe3 {[%emt 0:00:04]} (11. Qe1 $5) 11... Qc7 {[%emt 0:06:42]} 12. Be2 {[%emt 0:00:18][%cal Oc3d5] Prevents Nh5} Be7 {[%emt 0:00:27]} 13. Rd2 {[%emt 0:00:17]} (13. e5 $11 dxe5 14. Bxe5) 13... e5 {[%emt 0:00:32] Black is slightly better.} 14. Bg3 {[%emt 0:00:01]} O-O {[%emt 0:00:48]} 15. f4 {[%emt 0:00:02]} Nd7 {[%emt 0:00:18]} ({Black should try} 15... Rfe8 $15) 16. Rhd1 {[%emt 0:00:17]} b5 {[%emt 0:01:24]} 17. Kb1 {[%emt 0:00:02]} b4 {[%emt 0:00:14]} 18. Nd5 {[%emt 0:00:08]} Bxd5 {[%emt 0:00:02]} 19. Rxd5 {[%emt 0:00:54]} Nb6 {[%emt 0:00:02]} 20. R5d2 {[%emt 0:00:50]} Rfd8 {[%emt 0:00:34]} (20... a5 $11) 21. Rc1 $2 {[%emt 0:02:25]} (21. fxe5 $16 dxe5 22. Rxd8+ Rxd8 23. Rxd8+ Qxd8 24. Bh5 (24. Bxe5 Nd7 $16)) 21... Nc4 {[%emt 0:01:36]} (21... Na4 $15) 22. Bxc4 $14 {[%emt 0:00:10]} Qxc4 {[%emt 0:00:03]} 23. fxe5 {[%emt 0:00:59]} (23. Rd5 {simplifies} Bf6 24. Qd3 Qc7 25. h3) 23... Bg5 {[%emt 0:01:01]} 24. Bf4 {[%emt 0:00:06]} dxe5 {[%emt 0:00:08]} 25. Rxd8+ {[%emt 0:00:53]} Rxd8 {[%emt 0:00:04]} (25... Bxd8 {keeps more tension.} 26. Bxe5 Bg5 27. Bf4 Bxf4 28. Qxf4 Rd8) 26. Bxg5 {[%emt 0:00:03]} hxg5 {[%emt 0:00:02]} 27. Qxg5 $11 {[%emt 0:00:08][%mdl 4096] Endgame. KQR-KQR} Rd4 {[%emt 0:00:57]} (27... f6 $11 28. Qg4 Rd2) 28. Qxe5 $14 {[%emt 0:00:25] b3 would now be deadly.} Rxe4 {[%emt 0:00:02][%cal Bd4e4,Be4e2,Be2d2][%mdl 32]} 29. Qb8+ {[%emt 0:00:55]} Kh7 {[%emt 0:00:01]} 30. Qg3 {[%emt 0:00:07]} Re2 {[%emt 0:00:22]} 31. Qf3 {[%emt 0:00:30]} g6 {[%emt 0:01:11]} 32. a3 {[%emt 0:01:09]} bxa3 {[%emt 0:00:36]} 33. Qxa3 {[%emt 0:00:01]} Kg8 {[%emt 0:00:30]} 34. Qf3 {[%emt 0:00:11]} Rd2 {[%emt 0:00:29]} 35. b3 {[%emt 0:00:21]} Qc5 {[%emt 0:00:31] Black is now going downhill.} 36. h4 {[%emt 0:00:49][%cal Bh2h4,Bh4h5][%mdl 32]} a5 {[%emt 0:00:10][%cal Oa5a4]} 37. g4 {[%emt 0:00:15]} Rf2 {[%emt 0:00:28] [#]} 38. Qe4 {[%emt 0:00:16]} Qc7 {[%emt 0:00:32]} (38... Qb4 $16 {was called for.} 39. Qe3 Qf4) 39. h5 $18 {[%emt 0:00:13]} Rf4 $2 {[%emt 0:00:13]} (39... Qf4 40. Qa8+ Kg7) 40. Qe8+ {[%emt 0:00:24]} Kg7 {[%emt 0:00:03]} 41. hxg6 {[%emt 0:00:02]} fxg6 {[%emt 0:00:28]} 42. Re1 {[%emt 0:00:18] [#] And now Re7+ would win.} Qc3 {[%emt 0:00:31]} (42... Qd6 $142 43. g5 Rf8 44. Qe5+ Qxe5 45. Rxe5 Kf7) 43. g5 {[%emt 0:00:54] White threatens Re7+ and mate.} Rf7 {[%emt 0:00:21]} 44. Rh1 {[%emt 0:00:33][%csl Gh1][%cal Re8h8]} Rc7 {[%emt 0:00:29]} 45. Qh8+ {[%emt 0:00:33]} Kf7 {[%emt 0:00:01]} 46. Rf1+ {[%emt 0:00:43]} Ke6 {[%emt 0:00:46]} 47. Qe8+ {[%emt 0:00:44]} Kd5 {[%emt 0:00:25]} 48. Qxg6 {[%emt 0:00:41]} a4 {[%emt 0:00:16]} 49. Qf5+ {[%emt 0:00:25]} (49. bxa4 Rb7+) 49... Kc6 {[%emt 0:00:10]} 50. Qf6+ {[%emt 0:00:21]} (50. bxa4 $2 {is the wrong capture.} Rb7+ $19) (50. Qe4+ $142 Kd6 51. Rf6+ (51. bxa4 Kc5 $18) (51. Rf3 Qxf3 52. Qxf3 a3 $18) 51... Qxf6 52. gxf6 axb3 53. Qd4+ (53. cxb3 Rf7 $18) 53... Kc6 54. Qc3+ (54. cxb3 Rd7 55. Qf4 Rd1+ 56. Kb2 Rd8 57. f7 Rc8 58. f8=R Rxf8 59. Qxf8 Kd7) 54... Kd6 55. Qxb3) 50... Qxf6 {[%emt 0:00:09] White is clearly winning.} 51. gxf6 {[%emt 0:00:37] Intending f7 and mate.} Rf7 {[%emt 0:00:21]} 52. bxa4 {[%emt 0:00:19]} Kd5 {[%emt 0:00:23] Weighted Error Value: White=0.15 (very precise) /Black=0.45.  Mistake:       	White=2     	Black=7      Inaccurate:     	White=2     	Black=3      OK:         	White=13    	Black=10     Best:        	White=3     	Black=3} 1-0

[Event "Czech Open Rapid G1 2024"]
[Site "Pardubice"]
[Date "2024.07.18"]
[Round "9.15"]
[White "Ocelak, Jakub"]
[Black "Dobrowolski, Piotr"]
[Result "0-1"]
[Annotator "RC"]
[ECO "D02"]
[WhiteElo "2206"]
[BlackElo "2412"]
[PlyCount "116"]
[EventDate "2024.07.16"]
[EventType "swiss"]
[EventCountry "CZE"]
[SourceTitle "playchess.com"]
[Source "ChessBase"]
[SourceQuality "1"]
[TimeControl "1200+10"]

1. d4 {[%emt 0:00:11]} e6 {[%emt 0:00:02]} 2. Nf3 {[%emt 0:00:05]} c5 {[%emt 0:00:01]} 3. c3 {[%emt 0:00:12]} Nf6 {[%emt 0:00:11]} 4. Bf4 {[%emt 0:00:03]} d5 {[%emt 0:00:02]} 5. e3 {[%emt 0:00:05]} Bd6 {[%emt 0:00:03]} 6. Bg3 {[%emt 0:00:06]} O-O {[%emt 0:00:12]} 7. Nbd2 {[%emt 0:00:02]} Qc7 {[%emt 0:00:07]} 8. Bd3 {[%emt 0:00:12]} Nbd7 {[%emt 0:00:03]} 9. O-O {[%emt 0:00:18]} e5 {[%emt 0:00:03]} 10. e4 {[%emt 0:00:08]} exd4 {[%emt 0:00:23]} 11. cxd4 {[%emt 0:00:07]} Bxg3 {[%emt 0:00:06]} 12. hxg3 {[%emt 0:00:03]} c4 {[%emt 0:00:03]} 13. Bc2 {[%emt 0:03:59]} dxe4 {[%emt 0:00:05]} 14. Bxe4 {[%emt 0:00:17]} Nb6 {[%emt 0:02:36]} 15. Rc1 {[%emt 0:00:45]} Nxe4 {[%emt 0:02:01]} 16. Nxe4 {[%emt 0:00:02]} Rd8 {[%emt 0:03:11]} 17. Qc2 {[%emt 0:02:02]} h6 {[%emt 0:00:26]} 18. Nc5 {[%emt 0:01:02]} Nd5 {[%emt 0:01:18]} 19. Rfe1 {[%emt 0:02:33]} b6 {[%emt 0:00:25]} 20. Ne4 {[%emt 0:00:10]} Ba6 {[%emt 0:02:45]} 21. a3 {[%emt 0:00:33]} Rac8 {[%emt 0:00:56]} 22. Ne5 {[%emt 0:00:50]} Ne7 {[%emt 0:03:39]} 23. Rcd1 {[%emt 0:00:38]} f6 {[%emt 0:01:04]} 24. Nf3 {[%emt 0:00:11]} Bb7 {[%emt 0:00:17]} 25. Nc3 {[%emt 0:01:16]} Qd7 {[%emt 0:01:15]} 26. Nh4 {[%emt 0:00:42]} Re8 {[%emt 0:01:14]} 27. Qd2 {[%emt 0:01:58]} g5 {[%emt 0:00:25]} 28. Nf3 {[%emt 0:00:00]} Nd5 {[%emt 0:00:02]} 29. Rxe8+ {[%emt 0:00:50]} Rxe8 {[%emt 0:00:04]} 30. Re1 {[%emt 0:00:07]} Re6 {[%emt 0:00:37]} 31. Kf1 {[%emt 0:00:38]} Kg7 {[%emt 0:00:09]} 32. Rxe6 {[%emt 0:00:38]} Qxe6 {[%emt 0:00:01]} 33. Qe2 {[%emt 0:00:14]} Qxe2+ {[%emt 0:01:10]} 34. Kxe2 {[%emt 0:00:26]} Bc6 {[%emt 0:00:31]} 35. Nd2 {[%emt 0:01:03]} Kf7 {[%emt 0:00:05]} 36. f3 {[%emt 0:01:19]} Ke6 {[%emt 0:00:04]} 37. Nde4 {[%emt 0:00:21]} h5 {[%emt 0:00:09]} 38. Nxd5 {[%emt 0:00:29]} Bxd5 {[%emt 0:00:05]} 39. Nc3 {[%emt 0:00:23]} Bc6 {[%emt 0:00:28]} 40. Ke3 {[%emt 0:00:01]} a6 {[%emt 0:00:15]} 41. Ne4 {[%emt 0:00:35]} Bd5 {[%emt 0:00:14]} 42. Nc3 {[%emt 0:00:06]} Bc6 {[%emt 0:00:01]} 43. Ne4 {[%emt 0:00:01]} a5 {[%emt 0:00:11]} 44. Nd2 {[%emt 0:00:17]} Kd5 {[%emt 0:00:10]} 45. Ne4 {[%emt 0:00:03]} Ke6 {[%emt 0:00:02]} 46. Nd2 {[%emt 0:00:02]} Bd5 {[%emt 0:00:05]} 47. Ne4 {[%emt 0:00:19]} b5 {[%emt 0:00:19]} 48. Nc3 {[%emt 0:01:16]} b4 {[%emt 0:00:03]} 49. axb4 {[%emt 0:00:06]} axb4 {[%emt 0:00:00]} 50. Na2 {[%emt 0:00:28]} c3 {[%emt 0:00:13]} 51. Nxc3 {[%emt 0:00:15]} bxc3 {[%emt 0:00:01]} 52. bxc3 {[%emt 0:00:00]} Bc4 {[%emt 0:00:04]} 53. g4 {[%emt 0:00:11]} hxg4 {[%emt 0:00:10]} 54. fxg4 {[%emt 0:00:01]} Bd5 {[%emt 0:00:09]} 55. g3 {[%emt 0:00:02]} Bc4 {[%emt 0:00:02]} 56. Kf3 {[%emt 0:00:14]} Kd5 {[%emt 0:00:02]} 57. Ke3 {[%emt 0:00:01]} Bb5 {[%emt 0:00:07]} 58. Kf3 {[%emt 0:00:03]} Bd7 {[%emt 0:00:04]} 0-1

[Event "Czech Open Rapid G1 2024"]
[Site "Pardubice"]
[Date "2024.07.18"]
[Round "9.16"]
[White "Kastner, Oldrich"]
[Black "Jares, Michal"]
[Result "0-1"]
[Annotator "RC"]
[ECO "A47"]
[WhiteElo "2004"]
[BlackElo "2382"]
[PlyCount "36"]
[EventDate "2024.07.16"]
[EventType "swiss"]
[EventCountry "CZE"]
[SourceTitle "playchess.com"]
[Source "ChessBase"]
[SourceQuality "1"]
[TimeControl "1200+10"]

1. d4 {[%emt 0:00:05]} Nf6 {[%emt 0:00:03]} 2. Nf3 {[%emt 0:00:02]} e6 {[%emt 0:00:04]} 3. Bf4 {[%emt 0:00:17]} b6 {[%emt 0:00:14]} 4. e3 {[%emt 0:00:13]} Bb7 {[%emt 0:00:02]} 5. Bd3 {[%emt 0:01:06]} d5 {[%emt 0:00:20]} 6. Nc3 {[%emt 0:00:51]} Bd6 {[%emt 0:00:16]} 7. Bg3 {[%emt 0:00:44]} Bxg3 {[%emt 0:00:27]} 8. hxg3 {[%emt 0:00:02]} Nbd7 {[%emt 0:00:17]} 9. Ne2 {[%emt 0:00:21]} Qe7 {[%emt 0:00:43]} 10. Nf4 {[%emt 0:00:18]} Qb4+ {[%emt 0:00:53]} 11. Kf1 {[%emt 0:00:37]} Qxb2 {[%emt 0:00:41]} 12. a3 {[%emt 0:00:31]} Qc3 {[%emt 0:02:14]} 13. g4 {[%emt 0:03:40]} Ne4 {[%emt 0:01:08]} 14. Kg1 {[%emt 0:00:53]} Qc6 {[%emt 0:01:21]} 15. Ne5 {[%emt 0:04:11]} Nxe5 {[%emt 0:01:12]} 16. dxe5 {[%emt 0:00:02]} Qc3 {[%emt 0:00:35]} 17. f3 {[%emt 0:02:01]} Nc5 {[%emt 0:01:26]} 18. Bxh7 {[%emt 0:01:11]} Qxe3+ {[%emt 0:00:23]} 0-1

[Event "Czech Open Rapid G1 2024"]
[Site "Pardubice"]
[Date "2024.07.18"]
[Round "9.18"]
[White "Tyshniuk, Roman"]
[Black "Seger, Ruediger"]
[Result "0-1"]
[Annotator "RC"]
[ECO "D98"]
[WhiteElo "1903"]
[BlackElo "2264"]
[PlyCount "72"]
[EventDate "2024.07.16"]
[EventType "swiss"]
[EventCountry "CZE"]
[SourceTitle "playchess.com"]
[Source "ChessBase"]
[SourceQuality "1"]
[TimeControl "1200+10"]

1. d4 {[%emt 0:00:03]} Nf6 {[%emt 0:00:01]} 2. c4 {[%emt 0:00:01]} g6 {[%emt 0:00:01]} 3. Nc3 {[%emt 0:00:01]} d5 {[%emt 0:00:01]} 4. Nf3 {[%emt 0:00:01]} Bg7 {[%emt 0:00:01]} 5. Qb3 {[%emt 0:00:01]} dxc4 {[%emt 0:00:08]} 6. Qxc4 {[%emt 0:00:02]} O-O {[%emt 0:00:02]} 7. e4 {[%emt 0:00:02]} Nc6 {[%emt 0:00:23]} 8. Be2 {[%emt 0:00:34]} Bg4 {[%emt 0:00:08]} 9. Be3 {[%emt 0:00:28]} Bxf3 {[%emt 0:00:33]} 10. Bxf3 {[%emt 0:00:03]} e5 {[%emt 0:00:06]} 11. d5 {[%emt 0:00:26]} Nd4 {[%emt 0:00:03]} 12. Bd1 {[%emt 0:00:31]} c6 {[%emt 0:01:16]} 13. dxc6 {[%emt 0:00:31]} bxc6 {[%emt 0:02:30]} 14. O-O {[%emt 0:00:19]} Rb8 {[%emt 0:00:44]} 15. b4 {[%emt 0:01:48]} a5 {[%emt 0:00:56]} 16. a3 {[%emt 0:00:35]} axb4 {[%emt 0:01:38]} 17. axb4 {[%emt 0:00:01]} Qe7 {[%emt 0:00:13]} 18. Rb1 {[%emt 0:00:20]} Rfd8 {[%emt 0:02:28]} 19. f4 {[%emt 0:04:13]} Nd7 {[%emt 0:00:56]} 20. f5 {[%emt 0:01:23]} Nb6 {[%emt 0:00:31]} 21. Qa2 {[%emt 0:02:34]} Ra8 {[%emt 0:00:20]} 22. Qf2 {[%emt 0:00:02]} Nc4 {[%emt 0:00:37]} 23. Bc1 {[%emt 0:01:09]} Rd6 {[%emt 0:00:53]} 24. b5 {[%emt 0:00:30]} cxb5 {[%emt 0:02:33]} 25. Nxb5 {[%emt 0:02:04]} Rb6 {[%emt 0:00:34]} 26. Nc3 {[%emt 0:01:05]} Rxb1 {[%emt 0:00:05]} 27. Nxb1 {[%emt 0:00:01]} Ra1 {[%emt 0:00:30]} 28. Be2 {[%emt 0:01:36]} Nxe2+ {[%emt 0:00:07]} 29. Qxe2 {[%emt 0:00:02]} Qc5+ {[%emt 0:00:01]} 30. Kh1 {[%emt 0:00:37]} Rxb1 {[%emt 0:00:05]} 31. fxg6 {[%emt 0:00:05]} hxg6 {[%emt 0:00:10]} 32. Qa2 {[%emt 0:00:23]} Qb5 {[%emt 0:01:22]} 33. h4 {[%emt 0:00:20]} Nd6 {[%emt 0:00:23]} 34. Rg1 {[%emt 0:00:14]} Qb7 {[%emt 0:00:48]} 35. Re1 {[%emt 0:00:11]} Nxe4 {[%emt 0:00:21]} 36. h5 {[%emt 0:00:22]} Ng3+ {[%emt 0:00:15]} 0-1